fUST/lending_fUST_20250625
["ID","MTS","AMOUNT","RATE_DAILY","PERIOD"]
[367408715,1750787447175,-466.89549641,0.00017769,2]
[367408716,1750787447185,-1485.15,0.00017769,2]
[367408717,1750787447195,-466.95855286,0.00017769,2]
[367408718,1750787447205,-470.47620439,0.00017769,2]
[367408719,1750787447214,-460.0,0.00017769,2]
[367408721,1750787447223,-460.0,0.00017769,2]
[367408723,1750787447232,-1424.81,0.00017769,2]
[367408724,1750787447243,-1692.17,0.00017769,2]
[367408726,1750787447252,-460.0,0.00017769,2]
[367408728,1750787447261,-500.0,0.0001777,2]
[367408730,1750787447271,-460.0,0.0001777,2]
[367408732,1750787447281,-460.0,0.0001777,2]
[367408734,1750787447291,-460.0,0.0001777,2]
[367408736,1750787447301,-460.0,0.0001777,2]
[367408738,1750787447311,-460.0,0.0001777,2]
[367408740,1750787447320,-460.0,0.0001777,2]
[367408741,1750787447329,-460.0,0.0001777,2]
[367408743,1750787447338,-460.0,0.00017772,2]
[367408745,1750787447348,-553.05872448,0.00017772,2]
[367408747,1750787447357,-484.33,0.00017772,2]
[367408749,1750787447366,-460.0,0.00017772,2]
[367408751,1750787447376,-975.14,0.00017772,2]
[367408753,1750787447386,-965.64,0.00017772,2]
[367408755,1750787447395,-596.96,0.00017772,2]
[367408757,1750787447405,-549.49,0.00017772,2]
[367408759,1750787447414,-694.33,0.00017772,2]
[367408761,1750787447423,-460.0,0.00017772,2]
[367408763,1750787447433,-486.9,0.00017772,2]
[367408765,1750787447442,-460.0,0.00017772,2]
[367408767,1750787447451,-460.0,0.00017772,2]
[367408769,1750787447460,-1494.98,0.00017772,2]
[367408771,1750787447469,-460.0,0.00017772,2]
[367408773,1750787447479,-460.0,0.00017773,2]
[367408775,1750787447488,-460.0,0.00017773,2]
[367408777,1750787447497,-584.66675755,0.00017773,2]
[367408779,1750787447507,-460.0,0.00017773,2]
[367408781,1750787447516,-460.0,0.00017773,2]
[367408783,1750787447526,-468.58862482,0.00017773,2]
[367408785,1750787447535,-460.0,0.00017773,2]
[367408787,1750787447544,-498.34,0.00017773,2]
[367408789,1750787447553,-460.0,0.00017773,2]
[367408791,1750787447562,-460.0,0.00017773,2]
[367408793,1750787447571,-460.0,0.00017773,2]
[367408795,1750787447580,-460.0,0.00017773,2]
[367408797,1750787447590,-625.41,0.00017773,2]
[367408799,1750787447599,-460.0,0.00017773,2]
[367408801,1750787447607,-460.0,0.00017773,2]
[367408803,1750787447618,-460.0,0.00017773,2]
[367408805,1750787447627,-462.90334112,0.00017773,2]
[367408807,1750787447637,-551.8,0.00017773,2]
[367408809,1750787447646,-314.65,0.00017773,2]
[367408811,1750787447655,-460.0,0.00017773,2]
[367408813,1750787447664,-231.34747492,0.00017773,2]
[367408815,1750787447673,-460.0,0.00017773,2]
[367408817,1750787447682,-460.0,0.00017773,2]
[367408819,1750787447691,-460.0,0.00017773,2]
[367408821,1750787447700,-460.0,0.00017773,2]
[367408823,1750787447710,-460.0,0.00017773,2]
[367408825,1750787447719,-460.0,0.00017773,2]
[367408827,1750787447728,-460.0,0.00017773,2]
[367408828,1750787447738,-460.0,0.00017773,2]
[367408831,1750787447748,-689.39,0.00017773,2]
[367408833,1750787447757,-460.0,0.00017773,2]
[367408835,1750787447766,-798.31,0.00017775,2]
[367408837,1750787447775,-207.30266545,0.00017775,2]
[367408839,1750787447784,-460.0,0.00017775,2]
[367408841,1750787447793,-460.0,0.00017775,2]
[367408843,1750787447803,-460.0,0.00017775,2]
[367408845,1750787447812,-460.0,0.00017775,2]
[367408847,1750787447821,-460.0,0.00017775,2]
[367408849,1750787447830,-460.0,0.00017775,2]
[367408851,1750787447840,-460.0,0.00017775,2]
[367408853,1750787447848,-460.0,0.00017775,2]
[367408855,1750787447858,-460.0,0.00017775,2]
[367408857,1750787447867,-500.0,0.00017779,2]
[367408858,1750787447877,-200.95634157,0.0001778,2]
[367408861,1750787447886,-460.0,0.0001778,2]
[367408863,1750787447895,-460.0,0.0001778,2]
[367408864,1750787447904,-460.0,0.0001778,2]
[367408867,1750787447916,-560.63056324,0.0001778,2]
[367408869,1750787447925,-460.0,0.0001778,2]
[367408870,1750787447935,-460.0,0.0001778,2]
[367408873,1750787447945,-460.0,0.0001778,2]
[367408875,1750787447957,-460.0,0.0001778,2]
[367408877,1750787447966,-1256.99,0.0001778,2]
[367408878,1750787447975,-471.49209284,0.0001778,2]
[367408880,1750787447987,-456.81853134,0.0001778,2]
[367408882,1750787447996,-460.0,0.0001778,2]
[367408884,1750787448006,-460.0,0.0001778,2]
[367408886,1750787448015,-460.0,0.0001778,2]
[367408888,1750787448024,-460.0,0.0001778,2]
[367408891,1750787448033,-460.0,0.0001778,2]
[367408893,1750787448043,-1100.2,0.0001778,2]
[367408895,1750787448052,-718.65,0.0001778,2]
[367408897,1750787448061,-460.0,0.0001778,2]
[367408899,1750787448071,-468.8065227,0.0001778,2]
[367408901,1750787448080,-460.0,0.00017781,2]
[367408903,1750787448089,-460.0,0.00017781,2]
[367408905,1750787448098,-465.8059087,0.00017781,2]
[367408907,1750787448107,-460.0,0.00017781,2]
[367408909,1750787448117,-460.0,0.00017781,2]
[367408911,1750787448126,-460.0,0.00017781,2]
[367408913,1750787448136,-460.0,0.00017781,2]
[367408915,1750787448144,-261.58094292,0.00017781,2]
[367408917,1750787448153,-460.0,0.00017781,2]
[367408919,1750787448164,-460.0,0.00017781,2]
[367408920,1750787448174,-525.08440143,0.00017781,2]
[367408922,1750787448183,-460.0,0.00017781,2]
[367408924,1750787448192,-460.0,0.00017781,2]
[367408926,1750787448202,-464.27902842,0.00017781,2]
[367408928,1750787448211,-460.0,0.00017781,2]
[367408930,1750787448220,-460.0,0.00017781,2]
[367408932,1750787448230,-460.0,0.00017781,2]
[367408934,1750787448240,-460.0,0.00017781,2]
[367408936,1750787448249,-460.0,0.00017781,2]
[367408938,1750787448258,-505.24301029,0.00017781,2]
[367408940,1750787448268,-460.0,0.00017781,2]
[367408942,1750787448277,-460.0,0.00017781,2]
[367408944,1750787448287,-466.05902784,0.00017781,2]
[367408946,1750787448296,-460.0,0.00017781,2]
[367408949,1750787448306,-460.0,0.00017781,2]
[367408951,1750787448316,-460.0,0.00017781,2]
[367408952,1750787448324,-460.0,0.00017781,2]
[367408954,1750787448333,-465.56153685,0.00017781,2]
[367408957,1750787448343,-460.0,0.00017781,2]
[367408958,1750787448352,-460.0,0.00017781,2]
[367408960,1750787448361,-460.0,0.00017781,2]
[367408962,1750787448371,-460.0,0.00017781,2]
[367408964,1750787448381,-460.0,0.00017781,2]
[367408966,1750787448391,-460.0,0.00017781,2]
[367408968,1750787448400,-466.6039217,0.00017781,2]
[367408970,1750787448409,-460.0,0.00017781,2]
[367408972,1750787448418,-460.0,0.00017781,2]
[367408974,1750787448427,-460.0,0.00017781,2]
[367408976,1750787448437,-462.49802791,0.00017781,2]
[367408978,1750787448446,-460.0,0.00017781,2]
[367408980,1750787448456,-460.0,0.00017781,2]
[367408982,1750787448465,-460.0,0.00017781,2]
[367408984,1750787448475,-460.0,0.00017781,2]
[367408987,1750787448484,-460.0,0.00017781,2]
[367408989,1750787448494,-542.25,0.00017782,2]
[367408991,1750787448503,-460.0,0.00017782,2]
[367408993,1750787448513,-1710.45,0.00017782,2]
[367408995,1750787448523,-966.91,0.00017782,2]
[367408996,1750787448532,-460.0,0.00017782,2]
[367408998,1750787448542,-500.0,0.00017783,2]
[367409000,1750787448551,-500.0,0.00017783,2]
[367409002,1750787448560,-460.0,0.00017785,2]
[367409004,1750787448570,-460.0,0.00017785,2]
[367409006,1750787448579,-460.0,0.00017785,2]
[367409009,1750787448589,-460.0,0.00017785,2]
[367409011,1750787448598,-460.0,0.00017785,2]
[367409012,1750787448608,-460.0,0.00017785,2]
[367409015,1750787448617,-460.0,0.00017785,2]
[367409016,1750787448626,-497.05,0.00017785,2]
[367409018,1750787448638,-460.0,0.00017785,2]
[367409020,1750787448647,-583.23,0.00017785,2]
[367409022,1750787448656,-460.0,0.00017785,2]
[367409024,1750787448665,-3135.39,0.00017785,2]
[367409026,1750787448674,-471.49,0.00017785,2]
[367409028,1750787448684,-460.0,0.00017785,2]
[367409030,1750787448693,-460.0,0.00017785,2]
[367409032,1750787448702,-495.29,0.00017785,2]
[367409035,1750787448711,-460.0,0.00017785,2]
[367409036,1750787448722,-460.0,0.00017786,2]
[367409038,1750787448731,-738.01,0.00017786,2]
[367409040,1750787448741,-460.0,0.00017786,2]
[367409042,1750787448750,-460.0,0.00017786,2]
[367409044,1750787448759,-500.0,0.00017787,2]
[367409046,1750787448768,-460.0,0.00017788,2]
[367409048,1750787448778,-355.84502327,0.00017788,2]
[367409050,1750787448787,-460.0,0.00017788,2]
[367409052,1750787448796,-460.0,0.00017788,2]
[367409054,1750787448805,-394.68292661,0.00017788,2]
[367409056,1750787448814,-249.41677295,0.00017788,2]
[367409058,1750787448823,-460.0,0.00017788,2]
[367409060,1750787448833,-460.0,0.00017788,2]
[367409062,1750787448842,-460.0,0.00017788,2]
[367409064,1750787448851,-460.0,0.00017788,2]
[367409066,1750787448861,-460.0,0.0001779,2]
[367409068,1750787448870,-460.0,0.0001779,2]
[367409070,1750787448881,-460.0,0.0001779,2]
[367409072,1750787448890,-460.0,0.0001779,2]
[367409074,1750787448899,-430.0,0.0001779,2]
[367409076,1750787448912,-460.0,0.0001779,2]
[367409078,1750787448921,-431.46258245,0.0001779,2]
[367409080,1750787448930,-460.0,0.0001779,2]
[367409082,1750787448940,-1000.0,0.00017791,2]
[367409084,1750787448949,-1000.0,0.00017802,2]
[367409086,1750787448959,-2116.74142963,0.00017805,2]
[367409088,1750787448968,-1000.0,0.00017821,2]
[367409090,1750787448977,-228.66135921,0.00017821,2]
[367409092,1750787448985,-1000.0,0.00017821,2]
[367409094,1750787448995,-197.0,0.0001799,2]
[367409096,1750787449005,-365.9458251,0.0001801,2]
[367409098,1750787449015,-365.9458251,0.0001801,2]
[367409100,1750787449024,-365.9458251,0.0001801,2]
[367409102,1750787449033,-365.9458251,0.0001801,2]
[367409104,1750787449042,-731.8916502,0.0001801,2]
[367409106,1750787449051,-365.9458251,0.0001801,2]
[367409108,1750787449060,-365.9458251,0.0001801,2]
[367409110,1750787449070,-1000.0,0.00018031,2]
[367409112,1750787449079,-460.0,0.00018043,2]
[367409114,1750787449088,-1485.15,0.00018043,2]
[367409116,1750787449099,-460.0,0.00018043,2]
[367409118,1750787449108,-460.0,0.00018043,2]
[367409119,1750787449117,-1424.81,0.00018043,2]
[367409120,1750787449128,-1692.17,0.00018043,2]
[367409121,1750787449138,-460.0,0.00018043,2]
[367409122,1750787449147,-500.0,0.00018044,2]
[367409123,1750787449156,-460.0,0.00018044,2]
[367409124,1750787449165,-511.49953804,0.00018044,2]
[367409125,1750787449174,-460.0,0.00018044,2]
[367409126,1750787449183,-460.0,0.00018044,2]
[367409127,1750787449192,-396.85594251,0.00018046,2]
[367409128,1750787449201,-484.33,0.00018046,2]
[367409129,1750787449210,-460.0,0.00018046,2]
[367409130,1750787449219,-975.14,0.00018046,2]
[367409131,1750787449228,-965.64,0.00018046,2]
[367409132,1750787449238,-596.96,0.00018046,2]
[367409133,1750787449249,-694.33,0.00018046,2]
[367409134,1750787449259,-460.0,0.00018046,2]
[367409135,1750787449269,-486.9,0.00018046,2]
[367409136,1750787449279,-460.0,0.00018046,2]
[367409137,1750787449288,-460.0,0.00018046,2]
[367409138,1750787449297,-1494.98,0.00018046,2]
[367409139,1750787449306,-334.21268036,0.00018046,2]
[367409140,1750787449316,-286.26830865,0.00018047,2]
[367409142,1750787449326,-469.77,0.00018047,2]
[367409144,1750787449337,-494.28970586,0.00018047,2]
[367409146,1750787449346,-325.14766857,0.00018047,2]
[367409148,1750787449355,-498.34,0.00018047,2]
[367409150,1750787449365,-460.0,0.00018047,2]
[367409152,1750787449375,-460.0,0.00018047,2]
[367409154,1750787449385,-460.0,0.00018047,2]
[367409156,1750787449395,-625.41,0.00018047,2]
[367409158,1750787449404,-460.0,0.00018047,2]
[367409160,1750787449414,-460.0,0.00018047,2]
[367409162,1750787449423,-551.8,0.00018047,2]
[367409163,1750787449432,-460.0,0.00018047,2]
[367409165,1750787449441,-460.0,0.00018047,2]
[367409167,1750787449450,-460.0,0.00018047,2]
[367409169,1750787449459,-333.05678028,0.00018047,2]
[367409171,1750787449468,-460.0,0.00018047,2]
[367409173,1750787449477,-460.0,0.00018047,2]
[367409188,1750787449611,-460.0,0.00018047,2]
[367409190,1750787449622,-460.0,0.00018047,2]
[367409192,1750787449632,-460.0,0.00018047,2]
[367409194,1750787449641,-689.39,0.00018047,2]
[367409196,1750787449650,-460.0,0.00018047,2]
[367409198,1750787449659,-798.31,0.00018049,2]
[367409200,1750787449668,-460.0,0.00018049,2]
[367409202,1750787449677,-460.0,0.00018049,2]
[367409204,1750787449686,-566.65468876,0.00018049,2]
[367409206,1750787449695,-460.0,0.00018049,2]
[367409208,1750787449705,-460.0,0.00018049,2]
[367409210,1750787449714,-460.0,0.00018049,2]
[367409212,1750787449723,-460.0,0.00018049,2]
[367409214,1750787449732,-460.0,0.00018049,2]
[367409216,1750787449742,-500.0,0.00018053,2]
[367409218,1750787449755,-366.0004877,0.00018054,2]
[367409220,1750787449765,-1256.99,0.00018054,2]
[367409222,1750787449774,-460.0,0.00018054,2]
[367409224,1750787449783,-460.0,0.00018054,2]
[367409226,1750787449792,-460.0,0.00018054,2]
[367409228,1750787449802,-460.0,0.00018054,2]
[367409230,1750787449811,-460.0,0.00018054,2]
[367409232,1750787449821,-1100.2,0.00018054,2]
[367409234,1750787449830,-718.65,0.00018054,2]
[367409236,1750787449840,-460.0,0.00018054,2]
[367409238,1750787449849,-460.0,0.00018055,2]
[367409240,1750787449859,-460.0,0.00018055,2]
[367409242,1750787449868,-571.37,0.00018055,2]
[367409244,1750787449877,-460.0,0.00018055,2]
[367409246,1750787449887,-460.0,0.00018055,2]
[367409248,1750787449896,-460.0,0.00018055,2]
[367409250,1750787449908,-460.0,0.00018055,2]
[367409252,1750787449918,-474.9075155,0.00018055,2]
[367409254,1750787449927,-460.0,0.00018055,2]
[367409256,1750787449936,-460.0,0.00018055,2]
[367409258,1750787449946,-460.0,0.00018055,2]
[367409260,1750787449956,-460.0,0.00018055,2]
[367409262,1750787449965,-460.0,0.00018055,2]
[367409264,1750787449975,-460.0,0.00018055,2]
[367409266,1750787449986,-460.0,0.00018055,2]
[367409267,1750787449997,-464.80389089,0.00018055,2]
[367409269,1750787450006,-460.0,0.00018055,2]
[367409271,1750787450016,-460.0,0.00018055,2]
[367409273,1750787450026,-460.0,0.00018055,2]
[367409276,1750787450037,-460.0,0.00018055,2]
[367409278,1750787450046,-460.0,0.00018055,2]
[367409280,1750787450055,-460.0,0.00018055,2]
[367409282,1750787450065,-565.26279533,0.00018055,2]
[367409284,1750787450074,-460.0,0.00018055,2]
[367409285,1750787450084,-460.0,0.00018055,2]
[367409287,1750787450092,-460.0,0.00018055,2]
[367409289,1750787450102,-460.0,0.00018055,2]
[367409291,1750787450111,-460.0,0.00018055,2]
[367409293,1750787450120,-469.5228802,0.00018055,2]
[367409295,1750787450130,-460.0,0.00018055,2]
[367409297,1750787450140,-460.0,0.00018055,2]
[367409299,1750787450149,-466.14345709,0.00018055,2]
[367409301,1750787450159,-500.0,0.00018056,2]
[367409303,1750787450168,-500.0,0.00018056,2]
[367409305,1750787450177,-500.0,0.00018056,2]
[367409307,1750787450187,-500.0,0.00018056,2]
[367409309,1750787450196,-500.0,0.00018056,2]
[367409311,1750787450206,-542.25,0.00018056,2]
[367409313,1750787450215,-588.37019898,0.00018056,2]
[367409315,1750787450225,-1710.45,0.00018056,2]
[367409317,1750787450234,-966.91,0.00018056,2]
[367409319,1750787450243,-188.58,0.00018057,2]
[367409321,1750787450252,-500.0,0.00018057,2]
[367409323,1750787450261,-500.0,0.00018057,2]
[367409325,1750787450271,-500.0,0.00018057,2]
[367409327,1750787450280,-500.0,0.00018057,2]
[367409329,1750787450289,-460.0,0.00018059,2]
[367409331,1750787450298,-460.0,0.00018059,2]
[367409333,1750787450307,-485.15576816,0.00018059,2]
[367409335,1750787450317,-529.95923582,0.00018059,2]
[367409337,1750787450326,-460.0,0.00018059,2]
[367409339,1750787450335,-460.0,0.00018059,2]
[367409341,1750787450344,-497.05,0.00018059,2]
[367409343,1750787450353,-460.0,0.00018059,2]
[367409345,1750787450363,-583.23,0.00018059,2]
[367409347,1750787450372,-460.0,0.00018059,2]
[367409349,1750787450381,-3135.39,0.00018059,2]
[367409351,1750787450391,-471.49,0.00018059,2]
[367409353,1750787450400,-460.0,0.00018059,2]
[367409355,1750787450410,-495.29,0.00018059,2]
[367409357,1750787450419,-460.0,0.00018059,2]
[367409359,1750787450429,-738.01,0.0001806,2]
[367409361,1750787450438,-460.0,0.00018062,2]
[367409363,1750787450447,-460.0,0.00018062,2]
[367409365,1750787450457,-460.0,0.00018062,2]
[367409367,1750787450465,-1000.0,0.00018062,2]
[367409369,1750787450474,-460.0,0.00018062,2]
[367409371,1750787450484,-460.0,0.00018064,2]
[367409373,1750787450493,-460.0,0.00018064,2]
[367409375,1750787450503,-460.0,0.00018064,2]
[367409377,1750787450512,-460.0,0.00018064,2]
[367409378,1750787450520,-650.02714769,0.00018067,2]
[367409380,1750787450530,-517.93466624,0.00018068,2]
[367409382,1750787450539,-3152.0,0.00018075,2]
[367409384,1750787450548,-223.05869188,0.00018089,2]
[367409386,1750787450557,-500.0,0.00018089,2]
[367409388,1750787450566,-500.0,0.0001812,2]
[367409390,1750787450575,-500.0,0.0001812,2]
[367409392,1750787450584,-500.0,0.00018135,2]
[367409394,1750787450594,-500.0,0.00018135,2]
[367409396,1750787450603,-500.0,0.00018135,2]
[367409398,1750787450612,-415.37664357,0.00018317,2]
[367409400,1750787450621,-1485.15,0.00018317,2]
[367409402,1750787450630,-460.0,0.00018317,2]
[367409404,1750787450640,-460.0,0.00018317,2]
[367409406,1750787450649,-1424.81,0.00018317,2]
[367409408,1750787450659,-1692.17,0.00018317,2]
[367409410,1750787450669,-500.0,0.00018318,2]
[367409412,1750787450678,-153.56019844,0.00018318,2]
[367409414,1750787450687,-538.11,0.00018318,2]
[367409416,1750787450697,-1223.08090373,0.00018319,2]
[367409418,1750787450706,-484.33,0.0001832,2]
[367409420,1750787450715,-460.0,0.0001832,2]
[367409422,1750787450724,-975.14,0.0001832,2]
[367409424,1750787450733,-965.64,0.0001832,2]
[367409426,1750787450743,-596.96,0.0001832,2]
[367409428,1750787450752,-694.33,0.0001832,2]
[367409430,1750787450760,-460.0,0.0001832,2]
[367409432,1750787450771,-486.9,0.0001832,2]
[367409434,1750787450781,-460.0,0.0001832,2]
[367409436,1750787450790,-460.0,0.0001832,2]
[367409438,1750787450800,-1494.98,0.0001832,2]
[367409440,1750787450809,-498.34,0.00018321,2]
[367409442,1750787450818,-460.0,0.00018321,2]
[367409444,1750787450828,-460.0,0.00018321,2]
[367409446,1750787450837,-625.41,0.00018321,2]
[367409448,1750787450846,-460.0,0.00018321,2]
[367409450,1750787450855,-460.0,0.00018321,2]
[367409452,1750787450865,-551.8,0.00018321,2]
[367409454,1750787450874,-466.21,0.00018321,2]
[367409456,1750787450884,-225.1590052,0.00018321,2]
[367409458,1750787450893,-460.0,0.00018321,2]
[367409460,1750787450903,-460.0,0.00018321,2]
[367409461,1750787450913,-460.0,0.00018321,2]
[367409463,1750787450922,-460.0,0.00018321,2]
[367409465,1750787450931,-460.0,0.00018321,2]
[367409468,1750787450940,-689.39,0.00018321,2]
[367409470,1750787450950,-460.0,0.00018321,2]
[367409471,1750787450959,-798.31,0.00018323,2]
[367409473,1750787450968,-460.0,0.00018323,2]
[367409475,1750787450977,-460.0,0.00018323,2]
[367409477,1750787450987,-460.0,0.00018323,2]
[367409479,1750787450996,-460.0,0.00018323,2]
[367409481,1750787451005,-460.0,0.00018323,2]
[367409483,1750787451015,-460.0,0.00018323,2]
[367409485,1750787451024,-1256.99,0.00018328,2]
[367409487,1750787451033,-460.0,0.00018328,2]
[367409489,1750787451042,-532.14704303,0.00018328,2]
[367409490,1750787451052,-460.0,0.00018328,2]
[367409491,1750787451061,-1100.2,0.00018328,2]
[367409493,1750787451070,-718.65,0.00018328,2]
[367409495,1750787451079,-320.32,0.00018328,2]
[367409497,1750787451088,-460.0,0.00018329,2]
[367409499,1750787451098,-460.0,0.00018329,2]
[367409500,1750787451109,-460.0,0.00018329,2]
[367409501,1750787451119,-460.0,0.00018329,2]
[367409502,1750787451128,-476.44649756,0.00018329,2]
[367409503,1750787451137,-460.0,0.00018329,2]
[367409504,1750787451148,-461.0,0.00018329,2]
[367409505,1750787451157,-460.0,0.00018329,2]
[367409506,1750787451166,-460.0,0.00018329,2]
[367409507,1750787451175,-460.0,0.00018329,2]
[367409508,1750787451185,-502.22,0.00018329,2]
[367409509,1750787451194,-289.20573842,0.00018329,2]
[367409510,1750787451204,-460.0,0.00018329,2]
[367409511,1750787451214,-460.0,0.00018329,2]
[367409512,1750787451223,-460.0,0.00018329,2]
[367409513,1750787451232,-460.0,0.00018329,2]
[367409514,1750787451242,-460.0,0.00018329,2]
[367409515,1750787451251,-460.0,0.00018329,2]
[367409516,1750787451261,-152.52540601,0.00018329,2]
[367409517,1750787451270,-460.0,0.00018329,2]
[367409518,1750787451280,-460.0,0.00018329,2]
[367409519,1750787451289,-460.0,0.00018329,2]
[367409520,1750787451299,-460.0,0.00018329,2]
[367409521,1750787451308,-509.57744576,0.00018329,2]
[367409522,1750787451319,-542.25,0.0001833,2]
[367409523,1750787451328,-1710.45,0.0001833,2]
[367409524,1750787451337,-966.91,0.0001833,2]
[367409525,1750787451347,-287.78,0.00018333,2]
[367409526,1750787451356,-460.0,0.00018333,2]
[367409527,1750787451367,-464.96,0.00018333,2]
[367409528,1750787451376,-460.0,0.00018333,2]
[367409529,1750787451386,-497.05,0.00018333,2]
[367409530,1750787451396,-460.0,0.00018333,2]
[367409531,1750787451406,-583.23,0.00018333,2]
[367409532,1750787451415,-460.0,0.00018333,2]
[367409533,1750787451425,-3135.39,0.00018333,2]
[367409534,1750787451434,-471.49,0.00018333,2]
[367409535,1750787451444,-495.29,0.00018333,2]
[367409536,1750787451453,-738.01,0.00018334,2]
[367409537,1750787451463,-460.0,0.00018336,2]
[367409538,1750787451472,-460.0,0.00018336,2]
[367409539,1750787451483,-460.0,0.00018338,2]
[367409540,1750787451492,-1500.0,0.00018368,2]
[367409541,1750787451501,-1500.0,0.00018368,2]
[367409542,1750787451510,-2116.74142963,0.00018487,2]
[367409543,1750787451520,-197.0,0.00018562,2]
[367409544,1750787451529,-500.0,0.00018576,2]
[367409545,1750787451538,-215.0738,0.00018581,2]
[367409546,1750787451547,-1485.15,0.00018591,2]
[367409547,1750787451555,-460.0,0.00018591,2]
[367409548,1750787451564,-460.0,0.00018591,2]
[367409549,1750787451574,-1424.81,0.00018591,2]
[367409550,1750787451583,-1692.17,0.00018591,2]
[367409551,1750787451591,-1333.56,0.00018592,3]
[367409552,1750787451600,-666.78,0.00018592,3]
[367409553,1750787451609,-333.38,0.00018593,3]
[367409554,1750787451618,-484.33,0.00018594,2]
[367409555,1750787451627,-460.0,0.00018594,2]
[367409556,1750787451637,-975.14,0.00018594,2]
[367409557,1750787451646,-965.64,0.00018594,2]
[367409558,1750787451655,-596.96,0.00018594,2]
[367409559,1750787451665,-694.33,0.00018594,2]
[367409560,1750787451675,-460.0,0.00018594,2]
[367409561,1750787451684,-486.9,0.00018594,2]
[367409562,1750787451693,-460.0,0.00018594,2]
[367409563,1750787451703,-460.0,0.00018594,2]
[367409564,1750787451712,-1494.98,0.00018594,2]
[367409565,1750787451721,-498.34,0.00018595,2]
[367409566,1750787451730,-460.0,0.00018595,2]
[367409567,1750787451740,-460.0,0.00018595,2]
[367409568,1750787451749,-625.41,0.00018595,2]
[367409569,1750787451758,-460.0,0.00018595,2]
[367409570,1750787451768,-460.0,0.00018595,2]
[367409571,1750787451777,-551.8,0.00018595,2]
[367409572,1750787451787,-460.0,0.00018595,2]
[367409573,1750787451797,-460.0,0.00018595,2]
[367409574,1750787451806,-460.0,0.00018595,2]
[367409575,1750787451815,-460.0,0.00018595,2]
[367409576,1750787451824,-460.0,0.00018595,2]
[367409577,1750787451833,-689.39,0.00018595,2]
[367409578,1750787451842,-798.31,0.00018597,2]
[367409579,1750787451851,-460.0,0.00018597,2]
[367409580,1750787451860,-506.97812899,0.00018597,2]
[367409581,1750787451870,-460.0,0.00018597,2]
[367409582,1750787451880,-1256.99,0.00018602,2]
[367409583,1750787451889,-460.0,0.00018602,2]
[367409584,1750787451898,-460.0,0.00018602,2]
[367409585,1750787451911,-1100.2,0.00018602,2]
[367409586,1750787451920,-718.65,0.00018602,2]
[367409587,1750787451929,-460.0,0.00018603,2]
[367409588,1750787451938,-460.0,0.00018603,2]
[367409589,1750787451948,-460.0,0.00018603,2]
[367409590,1750787451957,-460.0,0.00018603,2]
[367409591,1750787451965,-520.2,0.00018603,2]
[367409592,1750787451974,-460.0,0.00018603,2]
[367409593,1750787451983,-460.0,0.00018603,2]
[367409594,1750787451993,-470.10691098,0.00018603,2]
[367409595,1750787452001,-460.0,0.00018603,2]